Cogmind - Beta 9.4 @@@ ROGUE MODE // 2020.01.12 @ 16:19:31 Player: Horse Result: Self-destructed Performance ------------- Evolutions (6) 3000 Regions Visited (26) 5200 Robots Destroyed (265) 1325 Value Destroyed (13210) 13210 Prototype IDs (44) 880 Alien Tech Used (0) 0 Bonus (9877) 9877 TOTAL SCORE: 33492 Bonus ------- High Alert Combat Kills 1235 Follower Combat Kills 4347 Entered Garrisons 1600 Used RIF Installer 3500 Aligned with FarCom 300 Built Enhanced Grunts 300 A7 Reached Mainframe 300 Friendly Fire -1705 Cogmind --------- Core Integrity 1027/1150 Matter 268/300 Energy 122/900 System Corruption 11% Temperature Cool (507) Movement Treading (200) Ox2 Location -4/Garrison Parts ------- > --- POWER (1) -------- Enhanced Fission Core > --- PROPULSION (3) --- Improved Medium Treads Centrium Wheel > --- UTILITY (13) ----- Medium Storage Unit Large Storage Unit Large Storage Unit Advanced Energy Well Advanced Particle Charger Quantum Capacitor Advanced Transmission Jammer Improved Force Field Relay Coupler [Swarmer] (24) Relay Coupler [Brawler] (20) > --- WEAPON (2) ------- Advanced Variable Charge Gun > --- INVENTORY (20) --- Quantum Reactor Advanced Matter Compressor (400) Long-range Terrain Scanner Advanced Particle Charger Centrium Medium Armor Plating Experimental Thermal Shield Relay Coupler [Swarmer] (43) Relay Coupler [Grunt] (32) Relay Coupler [Duelist] (31) Relay Coupler [Demolisher] (22) Guided Plasma Cannon Advanced Datajack Improved Remote Datajack Peak State ------------ > --- POWER ------------ Quantum Reactor > --- PROPULSION ------- Improved Medium Treads Centrium Heavy Treads > --- UTILITY ---------- Power Amplifier Advanced Heat Sink Large Storage Unit Large Storage Unit Large Storage Unit Improved Energy Well Advanced Particle Charger Quantum Capacitor Centrium Medium Armor Plating Experimental Thermal Shield Force Field Relay Coupler [Specialist] > --- WEAPON ----------- Advanced Variable Charge Gun Neutron Cannon > --- INVENTORY -------- Antimatter Reactor Medium Storage Unit Improved Energy Well High-capacity Matter Pod Gravity Neutralizing Apparatus Long-range Terrain Scanner Advanced Particle Charger Improved Medium Armor Plating Improved Force Field Relay Coupler [NC] Relay Coupler [Swarmer] Relay Coupler [Duelist] Relay Coupler [Sentry] Relay Coupler [Sentry] Relay Coupler [Hunter] Relay Coupler [Hunter] Relay Coupler [Hunter] Neutron Cannon Guided Plasma Cannon Improved KE Penetrator Advanced EMP Blaster [Rating: 125] Favorites ----------- Power Light Nuclear Core Engine Cooled Ion Engine Power Core Light Nuclear Core Reactor Quantum Reactor Propulsion Carbon-fiber Leg Treads Centrium Heavy Treads Leg Carbon-fiber Leg Wheel Wheel Hover Unit Aerolev Unit Utility Large Storage Unit Device Cooling System Storage Large Storage Unit Processor Target Analyzer Hackware Relay Coupler [Hunter] Protection Hardened Medium Armor Plating Weapon Assault Cannon Energy Gun Heavy Beamcaster Energy Cannon Neutron Cannon Ballistic Gun Enhanced Autogun Ballistic Cannon Assault Cannon Launcher Advanced EMP Blaster Special Weapon Remote Datajack Special Melee Weapon Advanced Datajack Build | -11 -10 -10 -9 -9 -9 -8 -8 -8 -8 -8 -7 -7 -7 -7 -6 -6 -6 -6 -6 -6 -5 -5 -4 -4 -4 -4 ------- Run | Scr Mat Min Mat Min Exi Min Mat Gar Mat Gar Fac Gar Fac Gar Fac Ext Cet Arc Hub Gar Fac Gar Fac Gar Fac Gar Slots Evolved 12 | . . . 2 . . . 2 . . . 2 . . . 2 . . . . . 2 . 2 . . . Power . | . . . . . . . . . . . . . . . . . . . . . . . . . . . Propulsion 1 | . . . . . . . . . . . . . . . . . . . . . 1 . . . . . Utility 11 | . . . 2 . . . 2 . . . 2 . . . 2 . . . . . 1 . 2 . . . Weapon . | . . . . . . . . . . . . . . . . . . . . . . . . . . . Parts Attached 335 | 5 3 7 19 5 1 3 26 13 27 5 23 32 18 20 16 20 6 . . 14 10 11 17 12 18 4 Power 25 | 1 . 2 3 1 . 1 3 1 2 . 1 2 . 2 1 1 1 . . . . . 2 . 1 . Engine 15 | 1 . 2 3 1 . 1 2 1 1 . 1 . . 1 . 1 . . . . . . . . . . Core 7 | . . . . . . . 1 . 1 . . 2 . 1 1 . . . . . . . . . 1 . Reactor 3 | . . . . . . . . . . . . . . . . . 1 . . . . . 2 . . . Propulsion 44 | 2 . 1 2 2 . . 2 6 6 . 2 5 3 1 3 4 1 . . . . 1 1 . 1 1 Treads 15 | . . . . . . . . . . . . 2 3 1 3 2 1 . . . . 1 1 . . 1 Leg 22 | . . . . 2 . . 2 6 5 . 2 3 . . . 2 . . . . . . . . . . Wheel 6 | 2 . 1 2 . . . . . . . . . . . . . . . . . . . . . 1 . Hover 1 | . . . . . . . . . 1 . . . . . . . . . . . . . . . . . Flight . | . . . . . . . . . . . . . . . . . . . . . . . . . . . Utility 135 | 1 2 . 3 . . . 10 2 6 1 11 12 10 12 9 7 2 . . 4 6 6 11 7 12 1 Device 34 | . . . 2 . . . 1 . . . 2 . 2 . 1 1 1 . . 2 4 4 3 2 8 1 Storage 19 | 1 2 . 1 . . . . 1 2 . 2 . 1 . . . . . . . 2 1 5 . 1 . Processor 6 | . . . . . . . 3 . 1 . 1 . 1 . . . . . . . . . . . . . Hackware 41 | . . . . . . . 1 . . . 3 8 4 6 5 2 . . . 2 . . 3 4 3 . Protection 35 | . . . . . . . 5 1 3 1 3 4 2 6 3 4 1 . . . . 1 . 1 . . Artifact . | . . . . . . . . . . . . . . . . . . . . . . . . . . . Weapon 131 | 1 1 4 11 2 1 2 11 4 13 4 9 13 5 5 3 8 2 . . 10 4 4 3 5 4 2 Energy Gun 28 | 1 1 3 . . . 1 4 . 2 . 2 2 . . . 1 . . . 4 2 2 . 2 . 1 Energy Cannon 27 | . . . 6 1 1 . 3 . . 1 . . . 2 2 3 1 . . 2 1 . 2 . 1 1 Ballistic Gun 12 | . . . 1 . . . 2 2 4 . . . . . . 1 . . . 1 . 1 . . . . Ballistic Cannon 20 | . . . . . . . 1 . 4 2 4 7 . 2 . . . . . . . . . . . . Launcher 26 | . . 1 4 1 . 1 . 2 3 1 1 1 2 1 . 1 1 . . 2 1 1 . 1 1 . Special Weapon 17 | . . . . . . . 1 . . . 2 3 3 . 1 2 . . . 1 . . 1 2 1 . Impact Weapon . | . . . . . . . . . . . . . . . . . . . . . . . . . . . Slashing Weapon . | . . . . . . . . . . . . . . . . . . . . . . . . . . . Piercing Weapon . | . . . . . . . . . . . . . . . . . . . . . . . . . . . Special Melee Weapon 1 | . . . . . . . . . . . . . . . . . . . . . . . . . 1 . Unidentified Prototypes 18 | . . . 1 . . 1 1 . 4 . 2 1 . . . . . . . 1 2 . 3 . 2 . Parts Lost 59 | . . 5 4 2 . 2 13 5 . 1 . 5 . 5 . 6 . . . 2 . 1 . . 1 7 Power 12 | . . 1 2 1 . 1 2 1 . . . 1 . 2 . 1 . . . . . . . . . . Propulsion 13 | . . 1 1 1 . . 2 3 . . . 2 . 1 . 1 . . . . . . . . . 1 Utility 13 | . . . . . . . 5 1 . 1 . . . . . 2 . . . . . . . . 1 3 Weapon 21 | . . 3 1 . . 1 4 . . . . 2 . 2 . 2 . . . 2 . 1 . . . 3 Highest Loss Streak 7 | . . 4 1 1 . 2 6 2 . 1 . 4 . 3 . 3 . . . 1 . 1 . . 1 7 Average Slot Usage (%) 95 | . 88 97 94 96 100 99 91 98 99 100 96 97 98 98 96 97 93 93 93 92 86 88 87 89 88 84 Engine 3 | . 14 12 8 8 11 10 4 2 4 9 6 1 . . . 2 . . . . . . . . . . Core 2 | . . . . . . . 2 6 4 . . 5 7 6 5 3 . . . . . . . . 2 5 Reactor 1 | . . . . . . . . . . . . . . . . . 5 6 6 6 5 5 5 5 2 . Treads 5 | . . . . . . . . . . . . 10 15 15 13 7 5 6 6 6 5 5 10 10 9 4 Leg 6 | . . . . 17 22 22 17 17 18 18 15 3 . . . 5 1 . . . . . . . . . Wheel 2 | . 28 27 21 4 . . . . . . . . . . . . . . . . . . . . . 5 Device 8 | . . . 9 11 11 11 2 6 . . 4 . 1 . 1 2 13 13 13 19 19 18 26 21 19 25 Storage 23 | . 23 28 32 33 33 33 27 27 27 27 23 23 23 23 20 20 20 20 20 20 19 26 20 21 21 21 Processor 4 | . . . . . . . 8 18 18 11 7 7 2 . . . . . . . . . . . . . Hackware 11 | . . . . . . . 4 . . . 2 21 28 19 29 33 20 20 20 20 17 11 6 14 15 10 Protection 8 | . . . . . . . 7 2 8 15 19 8 3 17 11 8 13 13 13 6 5 6 6 5 5 4 Energy Gun 1 | . 21 19 1 . . 10 3 . . . 2 . . . . . . . . 1 4 4 2 . . . Energy Cannon 3 | . . . 16 16 16 4 2 . . . . . . 4 1 . 6 6 6 4 5 1 3 5 4 4 Ballistic Gun 1 | . . . . . . . . 17 5 . . . . . . 1 . . . 2 . 3 1 . . . Ballistic Cannon 4 | . . . . . . . 5 . 11 17 11 9 7 1 . . . . . . . . . . . . Launcher 2 | . . 7 2 5 5 6 1 . . . . . 1 . 6 3 2 6 6 3 . . . 1 3 3 Special Weapon 1 | . . . . . . . 4 . . . . 4 5 6 4 4 3 . . . . . 2 2 1 . Naked Turns . | . . . . . . . . . . . . . . . . . . . . . . . . . . . Heaviest Build 114 | 10 24 28 46 41 41 41 46 42 66 67 76 65 61 70 68 78 97 97 97 97 94 100 114 110 109 103 Greatest Support 110 | 26 26 26 26 20 20 20 30 30 30 30 35 40 50 44 58 58 80 80 80 80 92 103 110 110 110 30 Greatest Overweight (x) 19 | . . 1 2 3 2 2 4 3 3 2 2 19 1 2 1 2 1 1 1 1 1 1 1 . 6 6 Average Overweight (x) . | . . . 1 1 1 1 1 1 1 2 1 1 1 . . . 1 1 1 . . . . . 1 5 Largest Inventory Capacity 24 | 6 12 12 16 16 16 16 16 18 20 20 24 20 20 20 20 20 20 20 20 20 20 20 22 20 20 20 Average Capacity 18 | 5 10 12 15 16 16 16 16 16 19 20 20 20 20 20 20 20 20 20 20 20 20 20 20 20 20 20 Most Carried 21 | 4 7 12 16 16 16 16 16 18 20 20 20 20 20 20 20 18 20 20 20 20 20 20 21 20 20 19 Average Carried 17 | 3 5 8 14 15 16 15 11 15 19 19 19 19 19 18 17 16 19 19 20 19 19 19 19 19 19 17 Final Capacity 20 | 6 12 12 16 16 16 16 16 18 20 20 20 20 20 20 20 20 20 20 20 20 20 20 20 20 20 20 Final Carried 20 | 4 7 12 16 16 16 16 14 18 20 19 20 20 18 20 16 17 20 20 20 20 20 20 20 20 19 13 Class Distribution -------------------- 26% | Botlord-Mutant 24% | Bothacker-Mutant 18% | Mutant 15% | Hauler-Mutant 13% | Scavenger-Mutant Dominant Class ---------------- Mutant | -10/Materials Mutant | -10/Mines Mutant | -9/Materials Mutant | -9/Mines Mutant | -9/Exiles Mutant | -8/Mines Mutant | -8/Materials Scavenger-Mutant | -8/Garrison Hauler-Mutant | -8/Materials Hauler-Mutant | -8/Garrison Hauler-Mutant | -7/Factory Bothacker-Mutant | -7/Garrison Bothacker-Mutant | -7/Factory Bothacker-Mutant | -7/Garrison Botlord-Mutant | -6/Factory Botlord-Mutant | -6/Extension Bothacker-Mutant | -6/Cetus Bothacker-Mutant | -6/Archives Bothacker-Mutant | -6/Hub_04(d) Scavenger-Mutant | -6/Garrison Scavenger-Mutant | -5/Factory Scavenger-Mutant | -5/Garrison Botlord-Mutant | -4/Factory Botlord-Mutant | -4/Garrison Botlord-Mutant | -4/Factory Botlord-Mutant | -4/Garrison Resources | -11 -10 -10 -9 -9 -9 -8 -8 -8 -8 -8 -7 -7 -7 -7 -6 -6 -6 -6 -6 -6 -5 -5 -4 -4 -4 -4 ----------- Run | Scr Mat Min Mat Min Exi Min Mat Gar Mat Gar Fac Gar Fac Gar Fac Ext Cet Arc Hub Gar Fac Gar Fac Gar Fac Gar Matter Collected 8500 | 236 44 140 272 128 . 50 506 786 1003 149 735 847 502 297 237 738 142 . . 254 146 183 188 176 741 . Remotely . | . . . . . . . . . . . . . . . . . . . . . . . . . . . Salvage Created 9683 | . 91 294 913 158 . 192 1048 734 1061 149 437 358 251 39 36 358 306 84 91 603 241 564 146 280 1248 1 Parts 512 | . 4 23 61 13 . 12 43 46 63 7 40 13 13 2 2 16 12 3 4 23 12 30 7 15 48 . Haulers Intercepted 5 | . . . 1 . . . 1 . 3 . . . . . . . . . . . . . . . . . Recyclers Shooed 9 | . . 1 1 1 . . 3 . 2 . . . 1 . . . . . . . . . . . . . Parts Field Recycled . | . . . . . . . . . . . . . . . . . . . . . . . . . . . Retrieved Matter . | . . . . . . . . . . . . . . . . . . . . . . . . . . . Parts Self-Destructed . | . . . . . . . . . . . . . . . . . . . . . . . . . . . Prevented . | . . . . . . . . . . . . . . . . . . . . . . . . . . . Kills | -11 -10 -10 -9 -9 -9 -8 -8 -8 -8 -8 -7 -7 -7 -7 -6 -6 -6 -6 -6 -6 -5 -5 -4 -4 -4 -4 ------- Run | Scr Mat Min Mat Min Exi Min Mat Gar Mat Gar Fac Gar Fac Gar Fac Ext Cet Arc Hub Gar Fac Gar Fac Gar Fac Gar Combat Hostiles Destroyed 192 | . 2 8 22 6 . 6 14 24 23 4 6 8 3 1 1 9 9 1 1 9 1 10 . 5 18 1 Guns 35 | . 2 1 . . . 3 4 12 4 . . . . . . 1 . . . 3 . 5 . . . . Cannons 76 | . . . 12 2 . . 9 . 11 3 6 4 . 1 . 1 5 1 1 2 . 2 . 3 12 1 AOE 76 | . . 7 10 4 . 3 1 12 8 1 . 4 3 . 1 7 4 . . 3 1 3 . 2 2 . Classes Destroyed 16 | . 1 3 6 . . 1 1 . 1 . 1 . . . . 1 . . . . . 1 . . . . Worker 15 | . . 1 1 1 . . . . 4 . 3 . . . . . . . . . . . 1 . 4 . Builder 11 | . . . 3 . . . 2 . 1 . 1 . . . . 1 . . . . . . . . 3 . Tunneler 5 | . . . 3 . . . . . . . 2 . . . . . . . . . . . . . . . Hauler 5 | . . . 1 . . . 1 . 3 . . . . . . . . . . . . . . . . . Recycler 16 | . . 2 3 . . . 4 . 2 . 2 . 1 . . 1 . . . . . . 1 . . . Mechanic 1 | . . . . . . . . . 1 . . . . . . . . . . . . . . . . . Drone 1 | . . . . . . . . . . . . . . . . . . . . . . 1 . . . . Watcher 13 | . . . 2 . . . . . 3 . 2 . 1 . . 1 . . 1 . 1 1 . . 1 . Swarmer 45 | . . 7 6 4 . 3 . 8 5 . . . . . . 5 5 . . . . 2 . . . . Grunt 80 | . 2 1 12 . . 2 7 12 10 3 . 7 4 1 1 1 3 . 1 6 1 3 . 3 . . Brawler 2 | . . . 1 . . . . . 1 . . . . . . . . . . . . . . . . . Duelist 5 | . . . . . . 1 1 1 1 . . . . . . . . . . 1 . . . . . . Sentry 29 | . . . 3 2 . . 5 3 5 . 2 1 . . . 1 . 1 . 1 . 3 . 1 1 . Hunter 15 | . . . . . . . 1 . 1 1 1 . . . . 1 1 . . 1 . . . . 7 1 Programmer 17 | . . . . . . . . . . . 3 1 . . . . . . . . . 2 . 1 10 . Behemoth 1 | . . . . . . . . . . . . . . . . 1 . . . . . . . . . . Enhanced Grunt 1 | . . . . . . . . . . . . . . . . . . . . . 1 . . . . . Thug 1 | . . 1 . . . . . . . . . . . . . . . . . . . . . . . . Guerrilla 2 | . . . . . . . . . . . . . . . . . . . . 1 1 . . . . . Best Kill Streak 16 | . 2 3 9 4 . 3 7 16 6 2 4 5 3 1 1 5 6 1 1 4 1 4 2 2 10 1 Combat Bots Only 16 | . 2 3 6 4 . 3 5 16 4 2 1 5 2 1 1 4 6 1 1 4 1 4 . 2 6 1 Max Kills in Single Turn 5 | . 1 2 4 3 . 3 1 3 3 1 1 4 3 1 1 5 4 1 1 2 2 2 1 1 3 1 Gunslinging . | . . . . . . . . . . . . . . . . . . . . . . . . . . . Exploded 4 | . . 2 2 3 . 3 1 3 3 1 . 3 2 . 1 4 4 . . 2 1 2 . 1 1 . Melee . | . . . . . . . . . . . . . . . . . . . . . . . . . . . Uniques/NPCs Destroyed . | . . . . . . . . . . . . . . . . . . . . . . . . . . . Combat | -11 -10 -10 -9 -9 -9 -8 -8 -8 -8 -8 -7 -7 -7 -7 -6 -6 -6 -6 -6 -6 -5 -5 -4 -4 -4 -4 -------- Run | Scr Mat Min Mat Min Exi Min Mat Gar Mat Gar Fac Gar Fac Gar Fac Ext Cet Arc Hub Gar Fac Gar Fac Gar Fac Gar Damage Taken 12101 | . 203 362 612 113 . 336 1448 757 1012 199 668 1132 298 661 152 950 43 . 57 436 75 712 16 369 817 673 Core 1741 | . 62 105 130 23 . 157 235 121 116 28 85 176 35 90 29 80 7 . . 68 18 53 . 18 40 65 Absorbed by Shields 1965 | . . . . . . . . 71 . . . . . 44 . 66 47 . 61 . . 352 16 222 748 338 Core Remaining (%) 54 | 100 . 33 . . . 22 . . . 9 . . . 44 . . . . . 78 . 92 . . . . Volleys Fired 886 | . 10 22 55 14 . 14 77 77 88 20 70 53 27 37 12 54 13 6 4 36 12 31 13 52 70 19 Largest 2 | . 2 2 2 2 . 2 2 2 2 2 2 2 2 1 1 2 1 1 1 2 2 2 1 2 1 1 Hottest 345 | . 90 90 120 120 . 120 120 50 88 120 105 105 74 120 30 171 120 120 120 171 171 275 90 345 90 105 Shots Fired 1267 | . 18 39 97 19 . 21 127 136 163 27 106 73 31 37 12 58 13 6 4 54 14 56 13 53 71 19 Gun 423 | . 18 30 . . . 11 47 124 52 . 34 10 . . . 16 . . . 30 2 40 . 4 . 5 Cannon 619 | . . . 80 17 . 9 65 . 99 24 65 45 16 22 . 4 11 6 4 16 8 13 9 36 57 13 Launcher 119 | . . 9 17 2 . 1 3 12 12 3 1 3 3 . 3 23 1 . . 8 4 3 . 3 7 1 Special 106 | . . . . . . . 12 . . . 6 15 12 15 9 15 1 . . . . . 4 10 7 . Kinetic 513 | . . . . . . . 39 124 151 19 65 45 16 10 . 12 . . . 14 . 18 . . . . Thermal 502 | . 18 30 80 17 . 9 57 . . 5 34 10 . 12 . 8 11 6 4 32 10 35 9 40 57 18 Explosive 90 | . . 9 17 2 . 1 3 12 12 3 1 . 3 . 3 23 1 . . . . . . . . . Electromagnetic 68 | . . . . . . 11 28 . . . . 3 . . . . . . . 8 4 3 . 3 7 1 Robot Hit Streak 35 | . 4 6 7 4 . 10 9 11 17 5 9 8 10 5 9 19 23 25 26 35 5 9 10 13 10 8 Robot Miss Streak 6 | . 4 1 3 4 . 1 6 4 5 2 6 3 2 4 1 3 . . . 1 2 2 . 3 2 2 Penetration Max 1 | . . . . . . . . . . . . . . . . 1 . . . . . . . . . . Secondary Targets 4 | . 1 . . . . . . 1 . . . . . . . . . . . 1 . 1 . . . . Max Gunslinging Chain 1 | . 1 . . . . . . 1 . . . . . . . . . . . 1 . 1 . . . . Capacitor 89 | . . . . . . . . . . . . . . . . . . . . . . . 9 27 36 17 Shots Hit Robots 691 | . 11 27 46 11 . 20 95 61 97 10 46 40 12 13 9 32 4 2 1 19 5 36 7 19 54 14 Core Hits 467 | . 5 19 51 10 . 12 58 43 60 10 22 11 11 1 6 26 13 3 2 24 14 20 2 13 29 2 Critical Hits 29 | . . . 2 . . . 1 2 10 1 4 2 . . . . . . 1 3 . . . . 3 . Critical Kills 13 | . . . 2 . . . . 1 4 . 1 1 . . . . . . 1 2 . . . . 1 . Critical Parts Destroyed 16 | . . . . . . . 1 1 6 1 3 1 . . . . . . . 1 . . . . 2 . Melee Attacks 1 | . . . . . . . . . . . . . . . . . . . . . . . . . 1 . Impact . | . . . . . . . . . . . . . . . . . . . . . . . . . . . Slashing . | . . . . . . . . . . . . . . . . . . . . . . . . . . . Piercing . | . . . . . . . . . . . . . . . . . . . . . . . . . . . Sneak Attacks . | . . . . . . . . . . . . . . . . . . . . . . . . . . . Combat Hostiles . | . . . . . . . . . . . . . . . . . . . . . . . . . . . Follow-up Attacks . | . . . . . . . . . . . . . . . . . . . . . . . . . . . Damage Inflicted 26192 | . 152 820 2352 439 . 575 1854 1687 3141 554 1220 1016 496 140 220 1830 776 196 151 1205 808 1582 140 1197 2967 674 Guns 4699 | . 152 261 . . . 169 642 891 596 . 325 215 . . . 306 . . . 316 23 669 . . . 134 Cannons 11026 | . . . 921 233 . 161 968 . 1354 419 895 549 164 140 . 116 376 196 151 365 225 462 140 494 2223 474 Explosions 10348 | . . 559 1431 206 . 242 157 796 1191 135 . 252 332 . 220 1408 400 . . 524 560 451 . 696 722 66 Melee . | . . . . . . . . . . . . . . . . . . . . . . . . . . . Ramming 32 | . . . . . . 3 . . . . . . . . . . . . . . . . . 7 22 . Kinetic 6170 | . . . . . . . 562 891 1950 248 895 549 164 105 . 284 . . . 193 . 329 . . . . Thermal 10111 | . 152 261 921 233 . 295 808 . . 171 325 259 . 35 . 184 376 196 151 631 302 1008 140 832 2223 608 Explosive 6883 | . . 559 1431 206 . 108 70 796 1191 135 . . 332 . 220 1362 400 . . . 73 . . . . . Electromagnetic 2996 | . . . . . . 169 414 . . . . 208 . . . . . . . 381 433 245 . 358 722 66 Impact . | . . . . . . . . . . . . . . . . . . . . . . . . . . . Slashing . | . . . . . . . . . . . . . . . . . . . . . . . . . . . Piercing . | . . . . . . . . . . . . . . . . . . . . . . . . . . . Highest Corruption 11 | . . . . . . 1 . . . . 3 6 6 6 . 5 5 5 5 5 . . . . 11 11 Average Corruption 5 | . . . . . . 1 . . . . 2 5 6 6 . 5 5 5 5 5 . . . . 7 11 Corruption Purged . | . . . . . . . . . . . . . . . . . . . . . . . . . . . Effects 243 | . . . . . . . . . . . 10 44 22 30 . 36 14 6 5 27 . . . . 45 4 Message Errors 61 | . . . . . . . . . . . 3 7 7 3 . 9 3 3 1 9 . . . . 15 1 Matter Fused 56 | . . . . . . . . . . . . 18 2 8 . 7 6 . 1 6 . . . . 7 1 Heat Flow Errors 31 | . . . . . . . . . . . 2 3 2 6 . 5 3 . 1 1 . . . . 7 1 Energy Discharges 28 | . . . . . . . . . . . 3 2 3 5 . 5 . 2 1 4 . . . . 2 1 Parts Rejected 2 | . . . . . . . . . . . . 2 . . . . . . . . . . . . . . Data Loss (minor) 24 | . . . . . . . . . . . . 5 3 3 . 3 2 . 1 3 . . . . 4 . Data Loss (major) 7 | . . . . . . . . . . . . . . 1 . 2 . 1 . 1 . . . . 2 . Misfires 9 | . . . . . . . . . . . . 2 3 . . 2 . . . 1 . . . . 1 . Misdirections 1 | . . . . . . . . . . . . . . . . . . . . . . . . . 1 . Targeting Errors 21 | . . . . . . . . . . . 1 4 1 4 . 3 . . . 2 . . . . 6 . Weapon Failures 3 | . . . . . . . . . . . 1 1 1 . . . . . . . . . . . . . Overload Shots 5 | . . . . . . . . . . . . . . . . . . . . . . 1 . 4 . . Effects 1 | . . . . . . . . . . . . . . . . . . . . . . . . 1 . . Heat Surge 1 | . . . . . . . . . . . . . . . . . . . . . . . . 1 . . Overflow Damage 684 | . . 43 59 . . . 51 7 93 5 16 19 8 . . 8 15 . 31 . 82 20 25 15 186 1 Projectiles 363 | . . . 6 . . . 10 . 9 5 16 18 8 . . . . . 31 . 56 8 25 . 170 1 Explosions 321 | . . 43 53 . . . 41 7 84 . . 1 . . . 8 15 . . . 26 12 . 15 16 . Melee . | . . . . . . . . . . . . . . . . . . . . . . . . . . . Knockbacks 45 | . . . . . . . 20 . 6 3 7 7 1 1 . . . . . . . . . . . . Impact . | . . . . . . . . . . . . . . . . . . . . . . . . . . . Kinetic 44 | . . . . . . . 19 . 6 3 7 7 1 1 . . . . . . . . . . . . Secondary 1 | . . . . . . . 1 . . . . . . . . . . . . . . . . . . . Self-Inflicted Damage 705 | . . 108 170 . . 102 96 . 44 . . . . . . 32 . . . 18 22 49 . . 50 14 Shots 27 | . . 5 6 . . 3 3 . 2 . . . . . . 1 . . . 1 1 2 . . 2 1 Rammed 3 | . . . . . . 1 . . . . . . . . . . . . . . . . . 1 1 . Targets Rammed 5 | . . . . . . 1 . . . . . . . . . . . . . . . . . 1 3 . Kicked . | . . . . . . . . . . . . . . . . . . . . . . . . . . . Crushed 2 | . . . . . . . . . . . . . . . . . . . . . . . . . 2 . Highest Temperature 510 | . 330 310 72 4 . . 279 15 282 370 224 266 164 319 11 325 230 120 199 227 87 396 301 355 342 510 Average Temperature 93 | . 157 96 18 3 . . 91 7 76 183 32 53 29 85 3 94 61 53 58 54 33 170 100 115 124 231 Received Heat Transfer 3210 | . 117 135 216 18 . 90 567 216 369 117 183 450 123 36 39 85 4 . 16 126 . 204 8 71 20 . Effects 13 | . . . . . . . 2 . . . . . . 1 . . . . . . . 5 . . 2 3 Shutdowns 1 | . . . . . . . . . . . . . . . . . . . . . . 1 . . . . Energy Bleed 4 | . . . . . . . 2 . . . . . . 1 . . . . . . . 1 . . . . Interference 6 | . . . . . . . . . . . . . . . . . . . . . . 2 . . 2 2 Short Circuit 2 | . . . . . . . . . . . . . . . . . . . . . . 1 . . . 1 Siege Activations . | . . . . . . . . . . . . . . . . . . . . . . . . . . . Robots Corrupted 4 | . . . . . . . . . . . . . . . . . . . . . . . . . 4 . Combat Hostiles 4 | . . . . . . . . . . . . . . . . . . . . . . . . . 4 . Parts Fried 12 | . . . . . . . 1 . . . 3 . . . . . . . . . . . . . 8 . Impact Corruptions . | . . . . . . . . . . . . . . . . . . . . . . . . . . . Robots Melted 1 | . . . . . . . . . . . . . . . . . . . . 1 . . . . . . Combat Hostiles 1 | . . . . . . . . . . . . . . . . . . . . 1 . . . . . . Parts Melted 16 | . 2 . 4 . . . . . . . . 3 . . . 1 1 . 1 2 . . . . 2 . Heat Transferred 13393 | . 397 658 1480 370 . 409 1734 . . 400 592 383 . 80 . 308 880 480 320 1144 507 882 75 638 1175 481 Parts Sabotaged . | . . . . . . . . . . . . . . . . . . . . . . . . . . . Parts Stolen . | . . . . . . . . . . . . . . . . . . . . . . . . . . . Parts Stripped . | . . . . . . . . . . . . . . . . . . . . . . . . . . . Power Chain Reactions 15 | . . . . . . 3 2 . . . . 1 . . . . . . . 4 1 2 . 2 . . Missiles Intercepted . | . . . . . . . . . . . . . . . . . . . . . . . . . . . Alert | -11 -10 -10 -9 -9 -9 -8 -8 -8 -8 -8 -7 -7 -7 -7 -6 -6 -6 -6 -6 -6 -5 -5 -4 -4 -4 -4 ------- Run | Scr Mat Min Mat Min Exi Min Mat Gar Mat Gar Fac Gar Fac Gar Fac Ext Cet Arc Hub Gar Fac Gar Fac Gar Fac Gar Peak Influence 1502 | . 65 200 461 309 . 179 335 812 547 441 297 364 660 438 344 293 787 404 538 1502 1390 1193 625 603 573 228 Average Influence 349 | . 26 94 165 241 . 122 121 528 356 375 97 242 446 304 223 91 492 381 200 1034 1141 1113 378 377 428 220 Maximum Alert Level 4 | . . 1 2 1 . . 1 3 2 2 1 1 2 2 1 1 3 2 2 4 4 4 2 2 2 1 Low Security (%) 34 | 100 100 93 57 19 . 100 79 18 24 . 76 22 12 1 32 89 5 . 68 7 . . 14 . . . Level 1 35 | . . 6 36 80 . . 20 3 29 86 23 77 15 90 67 10 43 18 22 8 . . 57 57 37 100 Level 2 20 | . . . 6 . . . . 45 45 13 . . 72 7 . . 26 81 8 12 . . 28 42 62 . Level 3 4 | . . . . . . . . 31 . . . . . . . . 24 . . 12 40 33 . . . . Level 4 5 | . . . . . . . . . . . . . . . . . . . . 58 59 66 . . . . Level 5 . | . . . . . . . . . . . . . . . . . . . . . . . . . . . High Security . | . . . . . . . . . . . . . . . . . . . . . . . . . . . Max Security . | . . . . . . . . . . . . . . . . . . . . . . . . . . . Squads Dispatched 31 | . 1 . 2 . . 1 2 . 3 . 4 . 2 . 2 3 . . 1 . 1 . 2 . 7 . Investigation 7 | . 1 . . . . . 1 . 1 . . . . . 1 1 . . . . . . . . 2 . Extermination 9 | . . . . . . . . . . . 3 . . . 1 . . . . . . . 1 . 4 . Reinforcement 11 | . . . 2 . . 1 1 . 1 . . . 1 . . 2 . . . . 1 . 1 . 1 . Assault 1 | . . . . . . . . . . . 1 . . . . . . . . . . . . . . . Garrison 3 | . . . . . . . . . 1 . . . 1 . . . . . 1 . . . . . . . Intercept . | . . . . . . . . . . . . . . . . . . . . . . . . . . . Construction Impeded 3 | . . . . . . 1 . . . . . . 1 . . 1 . . . . . . . . . . Haulers Reinforced 1 | . . . . . . . . . . . . . . . . . . . . . . . 1 . . . Alert ID Control Effect 66 | . . . . . . . . . . . 2 15 8 11 4 12 1 . . . . . 2 9 2 . Stealth | -11 -10 -10 -9 -9 -9 -8 -8 -8 -8 -8 -7 -7 -7 -7 -6 -6 -6 -6 -6 -6 -5 -5 -4 -4 -4 -4 --------- Run | Scr Mat Min Mat Min Exi Min Mat Gar Mat Gar Fac Gar Fac Gar Fac Ext Cet Arc Hub Gar Fac Gar Fac Gar Fac Gar Distress Signals 15 | . 1 . 2 . . . 5 . 3 . . . . . . . 1 1 . . . 1 . . 1 . Communications Jammed . | . . . . . . . . . . . . . . . . . . . . . . . . . . . Distress Signals . | . . . . . . . . . . . . . . . . . . . . . . . . . . . Times Spotted 475 | . 3 12 38 6 . 8 38 29 40 6 20 37 19 24 10 36 18 2 8 29 12 12 5 26 35 2 Peak Tracking Total 10 | . 3 2 7 4 . 3 6 8 5 4 4 7 5 4 4 6 8 2 5 10 5 5 2 6 8 2 Tactical Retreats 39 | . . 4 4 . . 1 5 3 8 3 2 8 . . . . . . . . . 1 . . . . Traps | -11 -10 -10 -9 -9 -9 -8 -8 -8 -8 -8 -7 -7 -7 -7 -6 -6 -6 -6 -6 -6 -5 -5 -4 -4 -4 -4 ------- Run | Scr Mat Min Mat Min Exi Min Mat Gar Mat Gar Fac Gar Fac Gar Fac Ext Cet Arc Hub Gar Fac Gar Fac Gar Fac Gar Traps Triggered 38 | . 1 . . . . . . 7 . . . 4 . 6 4 5 . . . 8 . 1 . 1 . 1 Indirectly . | . . . . . . . . . . . . . . . . . . . . . . . . . . . Trap Hack Attempts . | . . . . . . . . . . . . . . . . . . . . . . . . . . . Triggered . | . . . . . . . . . . . . . . . . . . . . . . . . . . . Disarmed 3 | . . . . . . . . . . . . . . . . 3 . . . . . . . . . . Reprogrammed 12 | . . . . . . . . . . . 12 . . . . . . . . . . . . . . . Reused 3 | . . . . . . . . . . . 3 . . . . . . . . . . . . . . . Traps Extracted . | . . . . . . . . . . . . . . . . . . . . . . . . . . . Installed . | . . . . . . . . . . . . . . . . . . . . . . . . . . . Triggered 4 | . . . . . . . 1 . . . 3 . . . . . . . . . . . . . . . Machines | -11 -10 -10 -9 -9 -9 -8 -8 -8 -8 -8 -7 -7 -7 -7 -6 -6 -6 -6 -6 -6 -5 -5 -4 -4 -4 -4 ---------- Run | Scr Mat Min Mat Min Exi Min Mat Gar Mat Gar Fac Gar Fac Gar Fac Ext Cet Arc Hub Gar Fac Gar Fac Gar Fac Gar Machines Disabled 58 | . . 3 5 . . 1 1 2 2 2 1 4 . 6 . 6 . 2 3 7 4 . 2 5 2 . Max in Single Turn 2 | . . 1 2 . . 1 1 1 1 1 1 1 . 1 . 2 . . . 1 2 . . 2 . . Garrison Access 1 | . . . . . . . . . . . 1 . . . . . . . . . . . . . . . Garrison Relay 18 | . . . . . . . . 2 . 1 . 4 . 4 . . . . . 4 . . . 3 . . Phase Generator 2 | . . . . . . . . . . . . . . . . . . . . 1 . . . 1 . . Energy Cycler 1 | . . . . . . . . . . . . . . . . 1 . . . . . . . . . . Machines Sabotaged . | . . . . . . . . . . . . . . . . . . . . . . . . . . . Garrisons Compromised . | . . . . . . . . . . . . . . . . . . . . . . . . . . . Overloaded Fab Kills . | . . . . . . . . . . . . . . . . . . . . . . . . . . . Fab Network Shutdowns 1 | . . . . . . . . . . . . . 1 . . . . . . . . . . . . . Hacking | -11 -10 -10 -9 -9 -9 -8 -8 -8 -8 -8 -7 -7 -7 -7 -6 -6 -6 -6 -6 -6 -5 -5 -4 -4 -4 -4 --------- Run | Scr Mat Min Mat Min Exi Min Mat Gar Mat Gar Fac Gar Fac Gar Fac Ext Cet Arc Hub Gar Fac Gar Fac Gar Fac Gar Machines Accessed 56 | . 1 . 3 . 1 . 6 . 11 . 8 . 2 . 2 6 3 . 4 . 2 . 2 . 5 . Terminals 36 | . 1 . 3 . . . 4 . 8 . 3 . . . 1 6 3 . 3 . . . 1 . 3 . Fabricators 2 | . . . . . . . . . . . 1 . 1 . . . . . . . . . . . . . Repair Stations 3 | . . . . . . . . . 1 . 1 . . . . . . . . . . . . . 1 . Recycling Units 1 | . . . . . . . . . . . . . . . . . . . . . 1 . . . . . Scanalyzers 2 | . . . . . . . 1 . 1 . . . . . . . . . . . . . . . . . Garrison Access 11 | . . . . . . . 1 . 1 . 3 . 1 . 1 . . . 1 . 1 . 1 . 1 . Total Hacks 167 | . 2 . 6 . 1 . 16 . 34 . 28 . 7 . 6 21 9 . 11 . 5 . 6 . 15 . Successful 96 | . 1 . 4 . 1 . 8 . 21 . 20 . 4 . 4 10 4 . 7 . 4 . 4 . 4 . Failed 70 | . 1 . 2 . . . 8 . 12 . 8 . 3 . 2 11 5 . 4 . 1 . 2 . 11 . Catastrophic 14 | . . . 1 . . . 2 . 1 . 1 . 1 . . 2 2 . 1 . 1 . 1 . 1 . Database Lockouts 1 | . . . . . . . . . 1 . . . . . . . . . . . . . . . . . Manual 67 | . 2 . 3 . 1 . 6 . 22 . 10 . 2 . 1 6 2 . 3 . 3 . 1 . 5 . Terminals 112 | . 2 . 6 . . . 13 . 24 . 12 . . . 3 21 9 . 9 . . . 4 . 9 . Fabricators 5 | . . . . . . . . . . . 1 . 4 . . . . . . . . . . . . . Repair Stations 15 | . . . . . . . . . 2 . 10 . . . . . . . . . . . . . 3 . Recycling Units 3 | . . . . . . . . . . . . . . . . . . . . . 3 . . . . . Scanalyzers 8 | . . . . . . . 2 . 6 . . . . . . . . . . . . . . . . . Garrison Access 23 | . . . . . . . 1 . 2 . 5 . 3 . 3 . . . 2 . 2 . 2 . 3 . Terminal Hacks 37 | . . . 2 . 1 . 5 . 5 . 6 . . . 1 6 4 . 3 . . . 2 . 2 . Record 3 | . . . . . . . . . . . . . . . . . 3 . . . . . . . . . Part Schematic 1 | . . . . . . . . . . . 1 . . . . . . . . . . . . . . . Robot Analysis 3 | . . . . . . . . . 1 . . . . . 1 . . . . . . . . . 1 . Open Door 4 | . . . . . . . . . . . . . . . . 3 1 . . . . . . . . . Branch Access Points 1 | . . . 1 . . . . . . . . . . . . . . . . . . . . . . . Terminal Index 4 | . . . 1 . . . 1 . 1 . 1 . . . . . . . . . . . . . . . Alert Level 1 | . . . . . . . 1 . . . . . . . . . . . . . . . . . . . Unreport Threat 8 | . . . . . . . 1 . 2 . . . . . . . . . 2 . . . 2 . 1 . Locate Traps 1 | . . . . . . . . . . . . . . . . 1 . . . . . . . . . . Disarm Traps 1 | . . . . . . . . . . . . . . . . 1 . . . . . . . . . . Reprogram Traps 2 | . . . . . . . . . . . 2 . . . . . . . . . . . . . . . Dispatch Records 1 | . . . . . . . . . . . . . . . . 1 . . . . . . . . . . Recall Extermination 1 | . . . . . . . . . . . 1 . . . . . . . . . . . . . . . Hauler Manifests 1 | . . . . . . . 1 . . . . . . . . . . . . . . . . . . . Registered Components 1 | . . . . . . . 1 . . . . . . . . . . . . . . . . . . . Registered Prototypes 1 | . . . . . . . . . . . 1 . . . . . . . . . . . . . . . Zone Layout 2 | . . . . . . . . . 1 . . . . . . . . . 1 . . . . . . . EX-Prototype ID Bank 1 | . . . . . 1 . . . . . . . . . . . . . . . . . . . . . Fabricator Hacks 3 | . . . . . . . . . . . . . 3 . . . . . . . . . . . . . Network Status 1 | . . . . . . . . . . . . . 1 . . . . . . . . . . . . . Build 2 | . . . . . . . . . . . . . 2 . . . . . . . . . . . . . Repair Station Hacks 13 | . . . . . . . . . 2 . 10 . . . . . . . . . . . . . 1 . Scan Component 7 | . . . . . . . . . 1 . 5 . . . . . . . . . . . . . 1 . Repair 6 | . . . . . . . . . 1 . 5 . . . . . . . . . . . . . . . Recycling Unit Hacks 1 | . . . . . . . . . . . . . . . . . . . . . 1 . . . . . Retrieve Components 1 | . . . . . . . . . . . . . . . . . . . . . 1 . . . . . Scanalyzer 8 | . . . . . . . 2 . 6 . . . . . . . . . . . . . . . . . Insert Component 4 | . . . . . . . 1 . 3 . . . . . . . . . . . . . . . . . Analyze 4 | . . . . . . . 1 . 3 . . . . . . . . . . . . . . . . . Garrison Access Hacks 12 | . . . . . . . 1 . 1 . 3 . 1 . 2 . . . 1 . 1 . 1 . 1 . Unlock Access 11 | . . . . . . . 1 . 1 . 3 . 1 . 1 . . . 1 . 1 . 1 . 1 . Coupler Status 1 | . . . . . . . . . . . . . . . 1 . . . . . . . . . . . Unauthorized Hacks 63 | . 3 . 4 . . . 3 . 18 . 6 . 2 . 2 9 . . 6 . 5 . 2 . 3 . Terminals 17 | . 1 . 2 . . . . . 7 . 1 . . . . 4 . . 2 . . . . . . . Track 3 | . . . 1 . . . . . 1 . . . . . . 1 . . . . . . . . . . Assimilate 3 | . . . . . . . . . 3 . . . . . . . . . . . . . . . . . Botnet 10 | . 1 . 1 . . . . . 3 . 1 . . . . 2 . . 2 . . . . . . . Disrupt 1 | . . . . . . . . . . . . . . . . 1 . . . . . . . . . . Fabricators . | . . . . . . . . . . . . . . . . . . . . . . . . . . . Repair Stations . | . . . . . . . . . . . . . . . . . . . . . . . . . . . Recycling Units 2 | . . . . . . . . . . . . . . . . . . . . . 2 . . . . . Reject 1 | . . . . . . . . . . . . . . . . . . . . . 1 . . . . . Recyclers 1 | . . . . . . . . . . . . . . . . . . . . . 1 . . . . . Scanalyzers . | . . . . . . . . . . . . . . . . . . . . . . . . . . . Garrison Access 3 | . . . . . . . . . . . . . . . 1 . . . 1 . . . 1 . . . Reprogram 3 | . . . . . . . . . . . . . . . 1 . . . 1 . . . 1 . . . Data Cores Recovered . | . . . . . . . . . . . . . . . . . . . . . . . . . . . Used . | . . . . . . . . . . . . . . . . . . . . . . . . . . . Hacking Detections 48 | . 1 . 3 . . . 5 . 10 . 7 . 1 . 1 6 2 . 3 . 2 . 2 . 5 . Full Trace Events 5 | . . . . . . . 1 . . . . . . . 1 1 . . . . . . . . 2 . Feedback Events 1 | . . . . . . . . . . . . . . . . . . . . . . . . . 1 . Corruption 1 | . . . . . . . . . . . . . . . . . . . . . . . . . 1 . Feedback Blocked . | . . . . . . . . . . . . . . . . . . . . . . . . . . . Robot Schematics Acquired . | . . . . . . . . . . . . . . . . . . . . . . . . . . . Robots Built . | . . . . . . . . . . . . . . . . . . . . . . . . . . . Matter . | . . . . . . . . . . . . . . . . . . . . . . . . . . . Time . | . . . . . . . . . . . . . . . . . . . . . . . . . . . Total Robot Build Rating . | . . . . . . . . . . . . . . . . . . . . . . . . . . . Part Schematics Acquired 5 | . . . . . . . 1 . 3 . 1 . . . . . . . . . . . . . . . Parts Built 2 | . . . . . . . . . . . . . 2 . . . . . . . . . . . . . Matter 424 | . . . . . . . . . . . . . 424 . . . . . . . . . . . . . Time 212 | . . . . . . . . . . . . . 212 . . . . . . . . . . . . . Total Part Build Rating 12 | . . . . . . . . . . . . . 12 . . . . . . . . . . . . . Parts Repaired 6 | . . . . . . . . . 1 . 5 . . . . . . . . . . . . . . . Time 229 | . . . . . . . . . 38 . 191 . . . . . . . . . . . . . . . Parts Recycled . | . . . . . . . . . . . . . . . . . . . . . . . . . . . Recycled Matter . | . . . . . . . . . . . . . . . . . . . . . . . . . . . Retrieved Matter . | . . . . . . . . . . . . . . . . . . . . . . . . . . . Retrieved Components 1 | . . . . . . . . . . . . . . . . . . . . . 1 . . . . . Parts Scanalyzed 4 | . . . . . . . 1 . 3 . . . . . . . . . . . . . . . . . Part Schematics Acquired 4 | . . . . . . . 1 . 3 . . . . . . . . . . . . . . . . . Parts Damaged . | . . . . . . . . . . . . . . . . . . . . . . . . . . . Bothacking | -11 -10 -10 -9 -9 -9 -8 -8 -8 -8 -8 -7 -7 -7 -7 -6 -6 -6 -6 -6 -6 -5 -5 -4 -4 -4 -4 ------------ Run | Scr Mat Min Mat Min Exi Min Mat Gar Mat Gar Fac Gar Fac Gar Fac Ext Cet Arc Hub Gar Fac Gar Fac Gar Fac Gar Used RIF Installer 7 | . . . . . . . . 1 . 1 . 1 . 1 . . . . . 1 . 1 . 1 . . Robot Detection 1 | . . . . . . . . . . . . 1 . . . . . . . . . . . . . . Patrol Navigation 1 | . . . . . . . . . . . . . . 1 . . . . . . . . . . . . Alert ID Control 1 | . . . . . . . . . . 1 . . . . . . . . . . . . . . . . Program Shield 1 | . . . . . . . . . . . . . . . . . . . . . . 1 . . . . Autooverride 2 | . . . . . . . . . . . . . . . . . . . . 1 . . . 1 . . Robots Hacked 69 | . . . . . . . . . . . 4 9 10 11 8 9 1 . . . . . 4 6 7 . Non-combat 10 | . . . . . . . . . . . 1 . 1 1 3 1 . . . . . . 1 . 2 . Combat 59 | . . . . . . . . . . . 3 9 9 10 5 8 1 . . . . . 3 6 5 . Autooverrided 2 | . . . . . . . . . . . . . . . . . . . . . . . . 1 1 . Robot Hacks Applied 70 | . . . . . . . . . . . 4 9 10 12 8 9 1 . . . . . 4 7 6 . parse_system 4 | . . . . . . . . . . . . . . 2 . 1 1 . . . . . . . . . find_chute 1 | . . . . . . . . . . . . . . . 1 . . . . . . . . . . . drop_inventory 1 | . . . . . . . . . . . . . . . 1 . . . . . . . . . . . find_recycling 2 | . . . . . . . . . . . . . 1 . 1 . . . . . . . . . . . map_route 3 | . . . . . . . . . . . 1 . . . . . . . . . . . 1 . 1 . link_fov 1 | . . . . . . . . . . . . . . . . 1 . . . . . . . . . . tweak_propulsion 1 | . . . . . . . . . . . . . . . . . . . . . . . . 1 . . disrupt_area 3 | . . . . . . . . . . . . . . . 1 1 . . . . . . . . 1 . reboot_system 1 | . . . . . . . . . . . . . . 1 . . . . . . . . . . . . go_dormant 1 | . . . . . . . . . . . . . . . . . . . . . . . . 1 . . overwrite_iff 5 | . . . . . . . . . . . 1 . 1 . . . . . . . . . . 3 . . streamctrl_high 2 | . . . . . . . . . . . . 1 . . . 1 . . . . . . . . . . formatsys_high 45 | . . . . . . . . . . . 2 8 8 9 4 5 . . . . . . 3 2 4 . Relay Couplers Released 76 | . . . . . . . . 8 . 5 1 17 . 14 . . . . . 18 . . . 13 . . Machine Destruction 76 | . . . . . . . . 8 . 5 1 17 . 14 . . . . . 18 . . . 13 . . Attached 38 | . . . . . . . . . . . 3 8 3 6 4 2 . . . 2 . . 3 4 3 . Robots Rewired 9 | . . . . . . 1 . . . . . . . . . 7 . . . . . 1 . . . . Allies Hacked 3 | . . . . . . . . . . . . 1 . . . . . . . . . . . 2 . . Hacks Repelled . | . . . . . . . . . . . . . . . . . . . . . . . . . . . Allies | -11 -10 -10 -9 -9 -9 -8 -8 -8 -8 -8 -7 -7 -7 -7 -6 -6 -6 -6 -6 -6 -5 -5 -4 -4 -4 -4 -------- Run | Scr Mat Min Mat Min Exi Min Mat Gar Mat Gar Fac Gar Fac Gar Fac Ext Cet Arc Hub Gar Fac Gar Fac Gar Fac Gar Total Allies 81 | . . 1 . . . 1 . . 1 . 3 9 9 9 5 19 5 . . . . 1 5 8 5 . Largest Group 12 | . . 1 . . . 1 1 . 1 1 2 5 8 10 7 11 12 12 10 9 4 2 5 7 4 . Highest-Rated Group 804 | . . 31 . . . 7 7 . 10 10 45 120 207 241 165 489 804 799 614 588 312 181 255 325 205 . Highest-Rated Ally 156 | . . 31 . . . 7 7 . 10 10 32 32 32 37 41 156 156 148 94 94 94 94 54 56 56 . Total Orders 95 | . . . . . . . 4 . 23 7 15 7 4 7 2 6 . . . 2 . 10 1 3 4 . STAY 20 | . . . . . . . . . 5 1 2 3 2 3 1 . . . . 1 . 1 1 . . . GOTO 37 | . . . . . . . 3 . 9 3 7 1 . 1 . 2 . . . . . 8 . 1 2 . FOLLOW 37 | . . . . . . . . . 9 3 6 3 2 3 1 4 . . . 1 . 1 . 2 2 . COLLECT 1 | . . . . . . . 1 . . . . . . . . . . . . . . . . . . . Ally Attacks 623 | . . 9 . . . . . . . . 12 46 26 67 49 113 50 17 36 55 48 11 11 52 21 . Total Damage 15479 | . . 168 . . . . . . . . 163 1513 756 1754 860 2316 1257 439 959 1599 1111 174 438 1493 479 . Kills 140 | . . 1 . . . . . . . . 2 17 8 18 6 23 8 3 6 19 11 1 2 12 3 . Allies Corrupted . | . . . . . . . . . . . . . . . . . . . . . . . . . . . Allies Melted . | . . . . . . . . . . . . . . . . . . . . . . . . . . . Intel | -11 -10 -10 -9 -9 -9 -8 -8 -8 -8 -8 -7 -7 -7 -7 -6 -6 -6 -6 -6 -6 -5 -5 -4 -4 -4 -4 ------- Run | Scr Mat Min Mat Min Exi Min Mat Gar Mat Gar Fac Gar Fac Gar Fac Ext Cet Arc Hub Gar Fac Gar Fac Gar Fac Gar Robot Analysis Total 3 | . . . . . . . . . 1 . . . . . 1 . . . . . . . . . 1 . Derelict Logs Recovered 4 | . . 2 . 2 . . . . . . . . . . . . . . . . . . . . . . Drone Launches 4 | . . . . . . . . . . . . . . . . . . . . . 2 . . . 2 . Drone Recoveries . | . . . . . . . . . . . . . . . . . . . . . . . . . . . Exploration | -11 -10 -10 -9 -9 -9 -8 -8 -8 -8 -8 -7 -7 -7 -7 -6 -6 -6 -6 -6 -6 -5 -5 -4 -4 -4 -4 ------------- Run | Scr Mat Min Mat Min Exi Min Mat Gar Mat Gar Fac Gar Fac Gar Fac Ext Cet Arc Hub Gar Fac Gar Fac Gar Fac Gar Turns Passed 19987 | 57 95 610 872 340 346 256 867 879 1788 520 2171 1511 826 915 589 1338 467 171 225 1075 399 446 657 1142 1313 112 Spaces Moved 10119 | 52 65 551 611 207 211 125 357 421 795 200 1078 696 391 459 328 659 242 84 121 490 186 157 363 597 625 48 Core 7 | 3 . . . . . . . . . . . 4 . . . . . . . . . . . . . . Treads 4870 | . . . . . . . . . . . . 543 391 459 328 435 212 84 121 490 186 157 363 597 501 3 Legs 3729 | . . . . 139 211 125 357 421 795 200 1078 149 . . . 224 30 . . . . . . . . . Wheels 1513 | 49 65 551 611 68 . . . . . . . . . . . . . . . . . . . . 124 45 Hover . | . . . . . . . . . . . . . . . . . . . . . . . . . . . Flight . | . . . . . . . . . . . . . . . . . . . . . . . . . . . Fastest Speed 50 | 50 90 90 90 90 150 150 150 150 150 180 155 155 165 145 160 150 150 180 180 160 160 160 160 160 150 140 Average Speed 155 | 87 90 90 97 142 163 150 155 151 166 180 157 180 173 170 164 159 176 180 180 179 172 178 160 160 158 153 Slowest Speed 1000 | 100 90 110 100 180 180 180 240 210 210 180 185 1000 180 185 172 180 180 180 180 180 180 180 180 160 160 220 Overloaded Moves . | . . . . . . . . . . . . . . . . . . . . . . . . . . . Propulsion Burnouts . | . . . . . . . . . . . . . . . . . . . . . . . . . . . Robots Hopped 1 | . . . . . . . . . . . . . . . . . . . . . . 1 . . . . Cave-ins Triggered . | . . . . . . . . . . . . . . . . . . . . . . . . . . . Exploration Rate (%) 44 | 3 16 99 46 48 61 19 39 68 69 46 22 79 11 76 8 86 71 74 19 82 5 35 8 74 22 10 Regions Visited 26 Branch Regions 8 Pre-discovered Areas 2 | . . 2 . . . . . . . . . . . . . . . . . . . . . . . . Known Exits Taken 9 | . . . 1 . . . 1 . 1 . 1 . 1 . . . . . 1 . 1 . 1 . 1 . Unknown Exits Taken 10 | 1 1 1 . 1 1 1 . . . . . . . . 1 1 1 1 . . . . . . . . Scrap Searched 7 | . . 1 . 3 . 3 . . . . . . . . . . . . . . . . . . . . Spaces Dug 25 | . . . 11 . . . 1 . 4 . 1 . 1 1 . . . . . . . . 6 . . . Terrain Destroyed 810 | . . 54 151 20 . 26 22 24 84 3 8 8 18 2 32 95 22 . . 80 23 18 6 102 8 4 Melee . | . . . . . . . . . . . . . . . . . . . . . . . . . . . Projectile 84 | . . . 16 2 . . 4 . 18 . 5 1 2 2 . . . . . 1 1 4 6 10 8 4 AOE 726 | . . 54 135 18 . 26 18 24 66 3 3 7 16 . 32 95 22 . . 79 22 14 . 92 . . Actions | -11 -10 -10 -9 -9 -9 -8 -8 -8 -8 -8 -7 -7 -7 -7 -6 -6 -6 -6 -6 -6 -5 -5 -4 -4 -4 -4 --------- Run | Scr Mat Min Mat Min Exi Min Mat Gar Mat Gar Fac Gar Fac Gar Fac Ext Cet Arc Hub Gar Fac Gar Fac Gar Fac Gar Total 13213 | 60 82 621 787 232 214 171 526 573 1126 332 1445 885 518 562 365 887 271 99 125 631 247 260 438 761 910 85 Wait 1372 | . . 30 83 6 . 18 52 33 177 106 261 77 67 13 7 28 3 6 1 52 30 31 29 85 173 4 Move 10094 | 51 64 550 610 206 210 124 357 420 795 199 1077 695 390 458 327 658 241 83 120 489 185 154 362 596 625 48 Hop 1 | . . . . . . . . . . . . . . . . . . . . . . 1 . . . . Pick Up 149 | 4 4 9 10 1 1 3 9 9 12 1 6 12 3 14 . 10 2 2 . 13 3 1 5 7 8 . Fast Attach 89 | 5 1 4 5 1 1 . 6 3 11 . 8 5 2 5 7 4 3 . . 1 4 4 4 1 4 . Attach 72 | . 1 2 5 1 . 2 14 2 . 1 1 9 2 7 3 7 1 . . 2 1 1 1 . 5 4 Detach 34 | . . . 2 . . . 5 . . . 2 5 4 3 . 4 4 . . . . 2 1 . 2 . Swap 174 | . 1 1 9 3 . 1 6 8 16 4 14 18 14 8 6 9 2 . . 11 5 6 12 11 9 . Drop 125 | . 1 3 8 . 2 1 . 6 27 1 6 6 9 3 2 3 2 2 . 11 6 1 10 5 8 2 Fire 886 | . 10 22 55 14 . 14 77 77 88 20 70 53 27 37 12 54 13 6 4 36 12 31 13 52 70 19 Melee 1 | . . . . . . . . . . . . . . . . . . . . . . . . . 1 . Ram . | . . . . . . . . . . . . . . . . . . . . . . . . . . . Kick 1 | . . . . . . 1 . . . . . . . . . . . . . . . . . . . . Crush 4 | . . . . . . . . . . . . . . . . . . . . . . . . 1 3 . Escape Stasis 71 | . . . . . . . . 15 . . . . . 12 . 20 . . . 16 . . . . . 8 Rewire 138 | . . . . . . 7 . . . . . 5 . 2 1 90 . . . . . 28 1 3 1 . Trap . | . . . . . . . . . . . . . . . . . . . . . . . . . . . Miscellaneous 2 | . . . . . . . . . . . . . . . . . . . . . 1 . . . 1 . Route ------- -11/Scrapyard -10/Materials -10/Mines (discovered 2 exits: *Mat x2) -9/Materials (discovered 2 exits: *Mat / *Min) -9/Mines (discovered 2 exits: *Mat / *Exi) -9/Exiles -8/Mines -8/Materials (discovered 3 exits: *Fac x2 / Gar) -8/Garrison (discovered 2 exits: *Mat x2) -8/Materials (discovered 4 exits: *Fac x3 / Gar) -8/Garrison -7/Factory (discovered 4 exits: *Fac / *Sto / Gar / Gar) -7/Garrison (discovered 3 exits: *Fac x3) -7/Factory (discovered 2 exits: *Fac / Gar) -7/Garrison (discovered 3 exits: *Fac x3) -6/Factory (discovered 2 exits: *Ext / Gar) -6/Extension (discovered 2 exits: *Fac / *Cet) -6/Cetus -6/Archives (discovered 2 exits: *Fac / *Hub) -6/Hub_04(d) (discovered 2 exits: Fac / Gar) -6/Garrison (discovered 2 exits: *Fac x2) -5/Factory -5/Garrison -4/Factory (discovered 3 exits: [Res x2] / Gar) -4/Garrison (discovered 3 exits: *Fac x3) -4/Factory -4/Garrison History --------- Turn | Location | Event 15 | -11/Scrapyard | Discovered new exit (range 15) 58 | -11/Scrapyard | Entered Materials 103 | -10/Materials | Discovered new exit (range 11) 153 | -10/Materials | Entered Mines 207 | -10/Mines | Lost 4 parts (1n3w) 235 | -10/Mines | Core integrity fell below 50% 319 | -10/Mines | Build established: Mutant 407 | -10/Mines | Assembled infested the area 423 | -10/Mines | Learned Materials stockpile data 522 | -10/Mines | Discovered new exit (range 13) 528 | -10/Mines | Escorted by a lone wolf Derelict 548 | -10/Mines | Learned location of Storage (-7) 645 | -10/Mines | Discovered new exit (range 11) 763 | -10/Mines | Entered Materials 763 | -9/Materials | Evolved 2 slots: Utility x2 1366 | -9/Materials | Identified exit to Mines 1407 | -9/Materials | Discovered new exit (range 16) 1635 | -9/Materials | Entered Mines 1636 | -9/Mines | Learned 4 Materials zone layouts 1657 | -9/Mines | Discovered new exit (range 4) 1968 | -9/Mines | Deemed a non-threat by the Exiles lab entrance 1969 | -9/Mines | Discovered new exit (range 5) 1975 | -9/Mines | Entered Exiles 2013 | -9/Exiles | Met 8R-AWN 2037 | -9/Exiles | Met EX-HEX 2083 | -9/Exiles | Met EX-BIN 2100 | -9/Exiles | Aligned with FarCom system 2101 | -9/Exiles | Given EX-Vault access code 2136 | -9/Exiles | Opened EX-Vault 2151 | -9/Exiles | Found Gui. Plasma Cannon 2191 | -9/Exiles | Warned to stay clear of 0b10 Research branches 2241 | -9/Exiles | Met EX-DEC 2303 | -9/Exiles | Discovered new exit (range 12) 2321 | -9/Exiles | Left Exiles lab with Gui. Plasma Cannon 2321 | -9/Exiles | Entered Mines 2345 | -8/Mines | Core integrity fell below 50% 2437 | -8/Mines | Discovered new exit (range 7) 2577 | -8/Mines | Entered Materials 2577 | -8/Materials | Accompanied by 1 ally 2577 | -8/Materials | Evolved 2 slots: Utility x2 2578 | -8/Materials | Identified exit to Factory 2883 | -8/Materials | Lost 6 parts (2n2u2w) 2960 | -8/Materials | Lost 4 parts (1p3u) 3444 | -8/Materials | Identified exit to Garrison 3444 | -8/Materials | Entered Garrison 3502 | -8/Garrison | Triggered checkpoint 3516 | -8/Garrison | Garrison Relay disabled 3611 | -8/Garrison | Triggered checkpoint 3617 | -8/Garrison | Triggered checkpoint 3639 | -8/Garrison | Triggered checkpoint 3688 | -8/Garrison | Triggered checkpoint 3718 | -8/Garrison | Destroyed 16 combat bots 3802 | -8/Garrison | Discovered new exit (range 12) 3847 | -8/Garrison | Core integrity fell below 50% 3989 | -8/Garrison | Discovered new exit (range 10) 4013 | -8/Garrison | Installed Relay Interface Framework 4030 | -8/Garrison | Build established: Scavenger-Mutant 4262 | -8/Garrison | Triggered checkpoint 4269 | -8/Garrison | Garrison Relay disabled 4323 | -8/Garrison | Entered Materials 4851 | -8/Materials | Discovered exit to Factory (range 15) 5135 | -8/Materials | Build established: Hauler-Mutant 5149 | -8/Materials | Central database locked down 5213 | -8/Materials | Core integrity fell below 20% 5394 | -8/Materials | Discovered exit to Factory (range 5) 5754 | -8/Materials | Repaired Hrd. Medium Armor Plating? 5871 | -8/Materials | Discovered exit to Factory (range 9) 5940 | -8/Materials | Garrison activated, responded to threat 6111 | -8/Materials | Identified exit to Garrison 6111 | -8/Materials | Entered Garrison 6111 | -8/Garrison | Accompanied by 1 ally 6120 | -8/Garrison | Expanded RIF knowledge: Alert ID Control 6189 | -8/Garrison | Triggered checkpoint 6214 | -8/Garrison | Triggered checkpoint 6467 | -8/Garrison | Discovered exit to Factory (range 15) 6561 | -8/Garrison | Garrison Relay disabled 6631 | -8/Garrison | Entered Factory 6631 | -7/Factory | Accompanied by 1 ally 6631 | -7/Factory | Evolved 2 slots: Utility x2 6738 | -7/Factory | Identified exit to Garrison 7296 | -7/Factory | Discovered new exit (range 15) 7393 | -7/Factory | Repaired Core Shielding? 7485 | -7/Factory | Repaired Hrd. Medium Armor Plating 7524 | -7/Factory | Repaired Assault Cannon 7576 | -7/Factory | Repaired Cld. Ion Engine 7615 | -7/Factory | Repaired Assault Cannon 7698 | -7/Factory | Identified exit to Storage 8132 | -7/Factory | Build established: Bothacker-Mutant 8332 | -7/Factory | Discovered new exit (range 14) 8730 | -7/Factory | Identified exit to Garrison 8780 | -7/Factory | Identified exit to Garrison 8802 | -7/Factory | Entered Garrison 8802 | -7/Garrison | Accompanied by 1 ally 8810 | -7/Garrison | Expanded RIF knowledge: Robot Detection 8846 | -7/Garrison | Triggered checkpoint 8906 | -7/Garrison | Garrison Relay disabled 9048 | -7/Garrison | Triggered checkpoint 9058 | -7/Garrison | Triggered checkpoint 9069 | -7/Garrison | Triggered checkpoint 9103 | -7/Garrison | Triggered checkpoint 9135 | -7/Garrison | Lost 4 parts (1p1n2w) 9309 | -7/Garrison | Discovered new exit (range 12) 9468 | -7/Garrison | Triggered checkpoint 9494 | -7/Garrison | Garrison Relay disabled 9760 | -7/Garrison | Triggered checkpoint 9787 | -7/Garrison | Garrison Relay disabled 9849 | -7/Garrison | Discovered new exit (range 11) 9996 | -7/Garrison | Triggered checkpoint 10017 | -7/Garrison | Garrison Relay disabled 10067 | -7/Garrison | Discovered new exit (range 13) 10313 | -7/Garrison | Entered Factory 10313 | -7/Factory | Accompanied by 2 allies 10443 | -7/Factory | Fabricated Adv. Hacking Suite? 10514 | -7/Factory | Local fabrication network quarantined 10592 | -7/Factory | Fabricated Adv. Hacking Suite (x1) 10927 | -7/Factory | Garrison activated, responded to threat 10994 | -7/Factory | Identified exit to Garrison 11067 | -7/Factory | Discovered new exit (range 6) 11139 | -7/Factory | Entered Garrison 11139 | -7/Garrison | Accompanied by 6 allies 11178 | -7/Garrison | Triggered checkpoint 11202 | -7/Garrison | Garrison Relay disabled 11262 | -7/Garrison | Triggered checkpoint 11280 | -7/Garrison | Triggered checkpoint 11301 | -7/Garrison | Triggered checkpoint 11326 | -7/Garrison | Triggered checkpoint 11353 | -7/Garrison | Core integrity fell below 50% 11370 | -7/Garrison | Lost 3 parts (1p2w) 11448 | -7/Garrison | Discovered new exit (range 9) 11500 | -7/Garrison | Garrison Relay disabled 11506 | -7/Garrison | Triggered checkpoint 11647 | -7/Garrison | Discovered new exit (range 10) 11671 | -7/Garrison | Expanded RIF knowledge: Patrol Navigation 11726 | -7/Garrison | Triggered checkpoint 11784 | -7/Garrison | Garrison Relay disabled 11952 | -7/Garrison | Triggered checkpoint 11977 | -7/Garrison | Build established: Botlord-Mutant 11981 | -7/Garrison | Garrison Relay disabled 12032 | -7/Garrison | Discovered new exit (range 10) 12054 | -7/Garrison | Entered Factory 12054 | -6/Factory | Accompanied by 4 allies 12054 | -6/Factory | Evolved 2 slots: Utility x2 12157 | -6/Factory | Identified exit to Garrison 12517 | -6/Factory | Discovered new exit (range 14) 12643 | -6/Factory | Entered Extension 12643 | -6/Extension | Accompanied by 4 allies 12673 | -6/Extension | Disrupted transfer network 12714 | -6/Extension | Rescued a captive Derelict 12898 | -6/Extension | Rescued a captive Derelict 13282 | -6/Extension | Allies destroyed B-75 Beast 13306 | -6/Extension | Spotted B-75 Beast 13323 | -6/Extension | Destroyed B-75 Beast 13346 | -6/Extension | Lost 3 parts (1p1u1w) 13767 | -6/Extension | Rescued a captive Derelict 13767 | -6/Extension | Rescued a captive Derelict 13804 | -6/Extension | Energy Cycler disabled 13805 | -6/Extension | Rescued a captive Derelict 13806 | -6/Extension | Rescued a captive Derelict 13806 | -6/Extension | Rescued a captive Derelict 13807 | -6/Extension | Rescued A7 13947 | -6/Extension | Discovered new exit (range 10) 13949 | -6/Extension | Discovered new exit (range 6) 13981 | -6/Extension | Entered Cetus 13981 | -6/Cetus | Accompanied by 11 allies 13986 | -6/Cetus | Acquired a Cetus Manufacturing Module code from A7 14004 | -6/Cetus | Spotted Cetus Guard 14004 | -6/Cetus | Spotted Cetus Guard 14005 | -6/Cetus | Allies destroyed Cetus Guard 14005 | -6/Cetus | Spotted Cetus Guard 14006 | -6/Cetus | Spotted Cetus Guard 14008 | -6/Cetus | Allies destroyed Cetus Guard 14015 | -6/Cetus | Allies destroyed Cetus Guard 14016 | -6/Cetus | Allies destroyed Cetus Guard 14103 | -6/Cetus | Started Cetus Manufacturing Module 14115 | -6/Cetus | Escorted A7 to Cetus Mainframe 14128 | -6/Cetus | Manufactured an Enhanced Grunt 14139 | -6/Cetus | Discovered new exit (range 16) 14153 | -6/Cetus | Manufactured an Enhanced Grunt 14178 | -6/Cetus | Manufactured an Enhanced Grunt 14203 | -6/Cetus | Manufactured an Enhanced Grunt 14228 | -6/Cetus | Manufactured an Enhanced Grunt 14280 | -6/Cetus | Build established: Bothacker-Mutant 14448 | -6/Cetus | Entered Archives 14448 | -6/Archives | Accompanied by 12 allies 14453 | -6/Archives | Received a hacking code to weaken MAIN.C 14503 | -6/Archives | Discovered new exit (range 16) 14527 | -6/Archives | Discovered new exit (range 16) 14619 | -6/Archives | Entered Hub_04(d) 14619 | -6/Hub_04(d) | Accompanied by 10 allies 14772 | -6/Hub_04(d) | Garrison activated, responded to threat 14795 | -6/Hub_04(d) | Discovered new exit (range 14) 14831 | -6/Hub_04(d) | Identified exit to Garrison 14844 | -6/Hub_04(d) | Entered Garrison 14844 | -6/Garrison | Accompanied by 9 allies 14943 | -6/Garrison | Found Prototype Device 14943 | -6/Garrison | Identified Exp. Thermal Shield 14957 | -6/Garrison | Found Exp. Thermal Shield 15008 | -6/Garrison | Triggered checkpoint 15040 | -6/Garrison | Garrison Relay disabled 15143 | -6/Garrison | Triggered checkpoint 15161 | -6/Garrison | Triggered checkpoint 15163 | -6/Garrison | Triggered checkpoint 15222 | -6/Garrison | Discovered new exit (range 11) 15256 | -6/Garrison | Expanded RIF knowledge: Autooverride 15290 | -6/Garrison | Triggered checkpoint 15325 | -6/Garrison | Garrison Relay disabled 15517 | -6/Garrison | Phase Generator disabled 15590 | -6/Garrison | Triggered checkpoint 15609 | -6/Garrison | Garrison Relay disabled 15754 | -6/Garrison | Discovered new exit (range 10) 15772 | -6/Garrison | Build established: Scavenger-Mutant 15800 | -6/Garrison | Triggered checkpoint 15842 | -6/Garrison | Garrison Relay disabled 15919 | -6/Garrison | Entered Factory 15919 | -5/Factory | Accompanied by 4 allies 15919 | -5/Factory | Evolved 2 slots: Propulsion x1, Utility x1 16275 | -5/Factory | Identified exit to Garrison 16318 | -5/Factory | Entered Garrison 16318 | -5/Garrison | Accompanied by 4 allies 16551 | -5/Garrison | Spotted B-75 Beast 16568 | -5/Garrison | Triggered checkpoint 16574 | -5/Garrison | Triggered checkpoint 16687 | -5/Garrison | Discovered new exit (range 10) 16718 | -5/Garrison | Expanded RIF knowledge: Program Shield 16764 | -5/Garrison | Entered Factory 16764 | -4/Factory | Evolved 2 slots: Utility x2 16966 | -4/Factory | Found Quantum Capacitor 17085 | -4/Factory | Identified exit to Garrison 17213 | -4/Factory | Discovered new exit (range 70) 17213 | -4/Factory | Discovered new exit (range 141) 17385 | -4/Factory | Build established: Botlord-Mutant 17421 | -4/Factory | Entered Garrison 17421 | -4/Garrison | Accompanied by 4 allies 17482 | -4/Garrison | P-70 Sage assimilated hostile Y-64 Sentinel 17544 | -4/Garrison | Triggered checkpoint 17562 | -4/Garrison | Garrison Relay disabled 17786 | -4/Garrison | Triggered checkpoint 17816 | -4/Garrison | Triggered checkpoint 17820 | -4/Garrison | P-70 Sage assimilated hostile G-67 Veteran 17828 | -4/Garrison | Triggered checkpoint 17899 | -4/Garrison | Spotted B-86 Titan 17899 | -4/Garrison | Spotted B-86 Titan 17942 | -4/Garrison | Discovered new exit (range 15) 17994 | -4/Garrison | Triggered checkpoint 18074 | -4/Garrison | Garrison Relay disabled 18128 | -4/Garrison | Triggered checkpoint 18212 | -4/Garrison | Garrison Relay disabled 18261 | -4/Garrison | Discovered new exit (range 15) 18474 | -4/Garrison | Phase Generator disabled 18500 | -4/Garrison | Discovered new exit (range 5) 18518 | -4/Garrison | Expanded RIF knowledge: Autooverride 18563 | -4/Garrison | Entered Factory 18563 | -4/Factory | Accompanied by 1 ally 19618 | -4/Factory | System corruption reached 10% 19876 | -4/Factory | Identified exit to Garrison 19876 | -4/Factory | Entered Garrison 19940 | -4/Garrison | Triggered checkpoint 19988 | -4/Garrison | Self-destructed Last Messages --------------- 19974_ Slug penetrates Reinforced Barrier. 19977_ Penetrated by Slug. 19977_ Slug penetrates Reinforced Barrier. 19977_ Penetrated by Slug. 19978_ Dropped Adv. Energy Well. 19979_ Extracted 800 energy. 19980_ Penetrated by Slug. 19980_ Matter Neutralizer destroyed. 19983_ Penetrated by Slug. 19983_ Slug penetrates Reinforced Barrier. 19983_ Penetrated by Slug. 19983_ Slug penetrates Reinforced Barrier. 19984_ Destroyed Hpw. Shotgun. 19986_ Overheating: System interference. 19986_ Adv. Particle Charger temporarily disabled. 19986_ Quantum Capacitor temporarily disabled. 19987_ Overheating: Short circuit. 19987_ Broken Enh. Fission Core permanently disabled. 19987_ Penetrated by Slug. 19987_ Slug penetrates Reinforced Barrier. Map ----- +----------------------------------------------------+ | | | | | | | ?????????????????????????????????????????????????? | | ?????????????????????????????????????????????????? | | ?????????????????????????????????????????????????? | | ?????????????????????????????????????????????????? | | ?????????????????????????????????????????????????? | | ?????????????????????????????????????????????????? | | ?????????????????????????????????????????????????? | | ?????????????????????????????????????????????????? | | ?????????????????????????????????????????????????? | | ?????????????????????????????????????????????????? | | ?????????????????????????????????????????????????? | | ?????????????????????????????????????????????????? | | ?????????????????????????????????????????????????? | | ?????????????????????????????????????????????????? | | ?????????????????????????????????????????????????? | | ?????????????????????????????????????????????????? | | ????????????????????????####?????????????????????? | | ??????????????????????### #?????????????????????? | | ??????????????????????#"# #?????????????????????? | | ??????????????????????#" #?????????????????????? | | ??????????????????????#" #?????????????????????? | | ??????????????????????#"! #?????????????????????? | | ??????????????????????#"#@ #?????????????????????? | | ??????????????????????### #?????????????????????? | | ????????????????????????;% ;#????????????????????? | | ????????????????????????# h;#????????????????????? | | ??????????????????????### ;#????????????????????? | | ??????????????????????# ##????????????????????? | | ??????????????????????# #?????????????????????? | | ??????????????????????# #??????????????????#### | | ??????????????????????### #??????????????????# | | ??????????????########### #################### | | ??????????????# | | ??????????????# | | ??????????????# | | ??????????????# #######;######################## | | ??????????????# ????????? ???????????????????????? | | ????????????????????????? ???????????????????????? | | ?????????????????????????????????????????????????? | | ?????????????????????????????????????????????????? | | ?????????????????????????????????????????????????? | | ?????????????????????????????????????????????????? | | ?????????????????????????????????????????????????? | | ?????????????????????????????????????????????????? | | ?????????????????????????????????????????????????? | | ?????????????????????????????????????????????????? | | ?????????????????????????????????????????????????? | +----------------------------------------------------+ Best States ------------- Heat Dissipation 62 Energy Generation 29 Energy Capacity 1550 Matter Stores 433 Matter Capacity 700 Sight Range 16 Terrain Scan Range 24 Terrain Scan Density 85 Jamming Range 16 Power Amplification 20 Additional Mass Support 12 Armor Coverage 450 Resistance: TH 30 Core Shielding 20 Utility Shielding 33 Weapon Shielding 66 Evasion (%) 42 Targeting Accuracy 8 Target Analysis 5 Recoil Reduction 3 Matter Filtering 50 Particle Charging 25 Offensive Hacking 14 Defensive Hacking 10 Item Schematics ----------------- Beamcaster | -8/Materials | Scanalyzed Enh. Autogun | -8/Materials | Scanalyzed Plasma Cutter | -8/Materials | Scanalyzed Utility Shielding | -8/Materials | Scanalyzed Imp. Particle Charger | -7/Factory | Hacked Robot Schematics ------------------ None Fabricated ------------ Adv. Hacking Suite | x1 | -7/Factory | Preloaded Adv. Hacking Suite | x1 | -7/Factory | Preloaded Alien Tech Used ----------------- None Achievements -------------- None Challenges ------------ None Game ------ Seed CentriumGatlingInterrupter Manual? 0 Play Time 03:07:39 Cumulative 883.9 hours Start 2020.01.12 @ 11:58:46 End 2020.01.12 @ 16:19:31 Sessions 1 Manual Loads 0 Difficulty Rogue Special Mode None Game No. 335 Rogue 335 Adventurer 0 Explorer 0 Win Type - Total 13 Types 12/0/1/0/0/0/0 Lore% 77 Gallery% 87 Achievement% 69 Wizard Run 0 Options --------- ASCII 0 Keyboard 1 Movement Numpad Keybinds 0 Fullscreen 2 Font 18/SmallcapsGlow Map View 112x50 Tactical HUD 1 Map Filters NONE Filters NONE Steam 1 RUN: 6ada5774-7009-4d55-a3d4-957c8e88185b